[Event "MČR v bleskovém šachu družstev 2019"]
[Site "Teplice, Czech Republic"]
[Date "2019.09.14"]
[Round "4.6"]
[White "Vltavsky, Vladimir"]
[Black "Rolinek, Dominik"]
[Result "1/2-1/2"]
[TimeControl "3 mim. + 2 s"]
[BlackFideId "384569"]
[WhiteElo "2252"]
[BlackElo "1885"]

1. e4 {[%clk 00:03:02]} d6 {[%clk 00:03:03]} {[%emt 00:00:01]} 2. d4 {[%clk
00:03:03]} {[%emt 00:00:01]} Nf6 {[%clk 00:03:05]} 3. Nc3 {[%clk 00:03:04]} e5
{[%clk 00:03:06]} 4. Nf3 {[%clk 00:03:05]} {[%emt 00:00:04]} Nbd7 {[%clk
00:03:07]} {[%emt 00:00:01]} 5. h3 {[%clk 00:03:04]} {[%emt 00:00:02]} Be7
{[%clk 00:03:05]} {[%emt 00:00:03]} 6. Bc4 {[%clk 00:03:05]} {[%emt 00:00:02]}
O-O {[%clk 00:02:58]} {[%emt 00:00:08]} 7. a4 {[%clk 00:03:06]} {[%emt
00:00:01]} a5 {[%clk 00:02:55]} {[%emt 00:00:05]} 8. O-O {[%clk 00:03:06]}
{[%emt 00:00:02]} c6 {[%clk 00:02:43]} {[%emt 00:00:14]} 9. Be3 {[%clk
00:02:59]} {[%emt 00:00:09]} Nb6 {[%clk 00:02:35]} {[%emt 00:00:09]} 10. Bb3
{[%clk 00:02:57]} {[%emt 00:00:05]} Nfd7 {[%clk 00:02:34]} {[%emt 00:00:03]} 11.
Qd2 {[%clk 00:02:53]} {[%emt 00:00:06]} exd4 {[%clk 00:02:33]} {[%emt
00:00:04]} 12. Nxd4 {[%clk 00:02:51]} {[%emt 00:00:03]} Nc5 {[%clk 00:02:33]}
{[%emt 00:00:01]} 13. Ba2 {[%clk 00:02:45]} {[%emt 00:00:08]} Nbxa4 {[%clk
00:02:16]} {[%emt 00:00:20]} 14. Nxa4 {[%clk 00:02:44]} {[%emt 00:00:03]} Nxa4
{[%clk 00:02:17]} {[%emt 00:00:01]} 15. Bxf7+ {[%clk 00:02:35]} {[%emt
00:00:11]} Rxf7 {[%clk 00:02:17]} {[%emt 00:00:01]} 16. Rxa4 {[%clk 00:02:36]}
Qc7 {[%clk 00:02:16]} {[%emt 00:00:04]} 17. Bf4 {[%clk 00:02:21]} {[%emt
00:00:17]} b5 {[%clk 00:02:13]} {[%emt 00:00:05]} 18. Raa1 {[%clk 00:02:21]}
{[%emt 00:00:02]} Bb7 {[%clk 00:02:01]} {[%emt 00:00:13]} 19. Nf5 {[%clk
00:02:13]} {[%emt 00:00:10]} Rd8 {[%clk 00:01:40]} {[%emt 00:00:23]} 20. Rxa5
{[%clk 00:02:08]} {[%emt 00:00:07]} Bc8 {[%clk 00:01:41]} {[%emt 00:00:01]} 21.
Ng3 {[%clk 00:01:51]} {[%emt 00:00:19]} Rxf4 {[%clk 00:01:33]} {[%emt
00:00:09]} 22. Qxf4 {[%clk 00:01:51]} {[%emt 00:00:02]} Qxa5 {[%clk 00:01:34]}
{[%emt 00:00:01]} 23. Rd1 {[%clk 00:01:38]} {[%emt 00:00:15]} Rf8 {[%clk
00:01:28]} {[%emt 00:00:07]} 24. Qe3 {[%clk 00:01:38]} {[%emt 00:00:02]} Qc7
{[%clk 00:01:17]} {[%emt 00:00:13]} 25. Qb3+ {[%clk 00:01:34]} {[%emt
00:00:07]} Kh8 {[%clk 00:01:16]} {[%emt 00:00:03]} 26. Qe3 {[%clk 00:01:34]}
{[%emt 00:00:02]} Be6 {[%clk 00:01:14]} {[%emt 00:00:03]} 27. b3 {[%clk
00:01:35]} {[%emt 00:00:02]} d5 {[%clk 00:01:08]} {[%emt 00:00:08]} 28. Re1
{[%clk 00:01:33]} {[%emt 00:00:04]} Bh4 {[%clk 00:00:59]} {[%emt 00:00:10]} 29.
exd5 {[%clk 00:01:31]} {[%emt 00:00:04]} Bxd5 {[%clk 00:00:56]} {[%emt
00:00:05]} 30. Kh2 {[%clk 00:01:09]} {[%emt 00:00:24]} Kg8 {[%clk 00:00:47]}
{[%emt 00:00:11]} 31. Qd3 {[%clk 00:01:02]} {[%emt 00:00:09]} Qf4 {[%clk
00:00:38]} {[%emt 00:00:10]} 32. Re2 {[%clk 00:00:59]} {[%emt 00:00:07]} Bxg3+
{[%clk 00:00:30]} {[%emt 00:00:09]} 33. fxg3 {[%clk 00:00:59]} {[%emt
00:00:01]} Qf1 {[%clk 00:00:28]} {[%emt 00:00:04]} 34. Qe3 {[%clk 00:00:58]}
{[%emt 00:00:04]} Qf6 {[%clk 00:00:20]} {[%emt 00:00:10]} 35. h4 {[%clk
00:00:56]} {[%emt 00:00:05]} Kf7 {[%clk 00:00:19]} {[%emt 00:00:03]} 36. Rf2
{[%clk 00:00:55]} {[%emt 00:00:03]} Qxf2 37. Qxf2+ {[%clk 00:00:56]} Kg8 {[%clk
00:00:15]} {[%emt 00:00:02]} 38. Qe3 {[%clk 00:00:55]} {[%emt 00:00:03]} h6
{[%clk 00:00:13]} {[%emt 00:00:05]} 39. g4 {[%clk 00:00:56]} {[%emt 00:00:01]}
Kf7 {[%clk 00:00:13]} {[%emt 00:00:02]} 40. g5 {[%clk 00:00:57]} {[%emt
00:00:01]} hxg5 {[%clk 00:00:13]} {[%emt 00:00:02]} 41. hxg5 Rh8+ 42. Kg3
{[%clk 00:00:59]} {[%emt 00:00:01]} Re8 {[%clk 00:00:16]} 43. Qd3 {[%clk
00:00:59]} {[%emt 00:00:03]} Re5 {[%clk 00:00:14]} {[%emt 00:00:03]} 44. Kf4
{[%clk 00:00:57]} {[%emt 00:00:05]} Re4+ {[%clk 00:00:15]} {[%emt 00:00:02]} 45.
Qxe4 {[%clk 00:00:55]} {[%emt 00:00:04]} Bxe4 {[%clk 00:00:16]} {[%emt
00:00:01]} 46. Kxe4 {[%emt 00:00:01]} Ke6 47. g4 {[%clk 00:00:55]} {[%emt
00:00:02]} g6 {[%clk 00:00:19]} 48. b4 {[%clk 00:00:49]} {[%emt 00:00:08]} Kd6
{[%clk 00:00:19]} {[%emt 00:00:02]} 49. Kd4 {[%clk 00:00:51]} Kc7 {[%clk
00:00:16]} {[%emt 00:00:05]} 50. Kc5 {[%clk 00:00:50]} {[%emt 00:00:03]} Kd7
{[%clk 00:00:17]} {[%emt 00:00:01]} 51. c3 {[%clk 00:00:34]} {[%emt 00:00:17]}
Kc7 {[%clk 00:00:18]} {[%emt 00:00:01]} 52. Kd4 {[%clk 00:00:32]} {[%emt
00:00:04]} Kd6 {[%clk 00:00:19]} {[%emt 00:00:01]} 53. Ke4 {[%clk 00:00:34]}
Ke6 {[%clk 00:00:20]} 54. Kd4 Kd6 {[%emt 00:00:01]} 55. c4 {[%clk 00:00:37]}
bxc4 {[%clk 00:00:21]} {[%emt 00:00:03]} 56. Kxc4 {[%clk 00:00:38]} {[%emt
00:00:01]} Kd7 {[%clk 00:00:20]} {[%emt 00:00:02]} 57. Kd4 {[%clk 00:00:38]}
{[%emt 00:00:02]} Kd6 {[%clk 00:00:21]} 58. Kc4 {[%clk 00:00:38]} {[%emt
00:00:02]} Kd7 {[%clk 00:00:21]} {[%emt 00:00:02]} 59. Kc5 {[%emt 00:00:02]}
Kc7 60. Kd4 {[%clk 00:00:37]} {[%emt 00:00:04]} Kd6 {[%clk 00:00:24]} 61. Kc4
Kd7 {[%emt 00:00:02]} 62. Kd4 {[%emt 00:00:11]} Kd6 63. Ke4 {[%clk 00:00:31]}
Ke6 {[%clk 00:00:28]} 64. Kd4 {[%clk 00:00:30]} {[%emt 00:00:02]} Kd6 {[%clk
00:00:29]} {[%emt 00:00:01]} 65. Kc4 {[%clk 00:00:29]} {[%emt 00:00:03]} Kd7
{[%clk 00:00:27]} {[%emt 00:00:03]} 66. Kc5 {[%clk 00:00:27]} {[%emt 00:00:05]}
Kc7 {[%clk 00:00:28]} {[%emt 00:00:01]} 67. Kd4 {[%clk 00:00:24]} {[%emt
00:00:05]} Kd6 {[%clk 00:00:29]} 1/2-1/2

[Event "MČR v bleskovém šachu družstev 2019"]
[Site "Teplice, Czech Republic"]
[Date "2019.09.14"]
[Round "4.7"]
[White "Richtr, Zdenek"]
[Black "Marsalek, Zdenek"]
[Result "0-1"]
[TimeControl "3 mim. + 2 s"]
[WhiteFideId "301248"]
[WhiteElo "2138"]
[BlackElo "2272"]

1. e4 {[%clk 00:03:03]} {[%emt 00:22:22]} d6 {[%clk 00:03:03]} {[%emt
00:00:01]} 2. d4 {[%clk 00:03:03]} {[%emt 00:00:02]} Nf6 {[%clk 00:03:04]} 3.
Nc3 {[%clk 00:03:03]} {[%emt 00:00:02]} e5 {[%clk 00:03:05]} {[%emt 00:00:01]}
4. Nf3 {[%clk 00:03:02]} {[%emt 00:00:03]} Nbd7 {[%clk 00:03:06]} {[%emt
00:00:02]} 5. g3 {[%clk 00:03:01]} {[%emt 00:00:03]} Be7 {[%clk 00:03:06]}
{[%emt 00:00:02]} 6. Bg2 {[%clk 00:03:02]} {[%emt 00:00:01]} O-O {[%clk
00:03:06]} {[%emt 00:00:01]} 7. O-O {[%clk 00:03:03]} {[%emt 00:00:02]} c6
{[%clk 00:03:07]} 8. h3 {[%clk 00:03:01]} {[%emt 00:00:04]} b5 {[%clk
00:03:07]} {[%emt 00:00:02]} 9. Be3 {[%clk 00:02:59]} {[%emt 00:00:04]} b4
{[%clk 00:03:01]} {[%emt 00:00:08]} 10. dxe5 {[%clk 00:03:00]} {[%emt
00:00:02]} dxe5 {[%clk 00:02:59]} {[%emt 00:00:04]} 11. Ne2 {[%clk 00:02:51]}
{[%emt 00:00:11]} Ba6 {[%clk 00:02:57]} {[%emt 00:00:04]} 12. Nd2 {[%clk
00:02:39]} {[%emt 00:00:14]} Bc5 {[%clk 00:02:53]} {[%emt 00:00:06]} 13. Bxc5
{[%clk 00:02:23]} {[%emt 00:00:18]} Nxc5 {[%clk 00:02:53]} {[%emt 00:00:02]} 14.
Re1 {[%clk 00:02:24]} {[%emt 00:00:01]} Qb6 {[%clk 00:02:45]} {[%emt 00:00:10]}
15. Qc1 {[%clk 00:01:40]} {[%emt 00:00:45]} Rad8 {[%clk 00:02:40]} {[%emt
00:00:08]} 16. a3 {[%clk 00:01:38]} {[%emt 00:00:04]} bxa3 {[%clk 00:01:58]}
{[%emt 00:00:44]} 17. Rxa3 {[%clk 00:01:38]} {[%emt 00:00:02]} Rd7 {[%clk
00:01:54]} {[%emt 00:00:05]} 18. Nc3 {[%clk 00:01:30]} {[%emt 00:00:10]} Rfd8
{[%clk 00:01:53]} {[%emt 00:00:03]} 19. Nb3 {[%clk 00:01:30]} {[%emt 00:00:03]}
Bc4 {[%clk 00:01:33]} {[%emt 00:00:22]} 20. Nd2 {[%clk 00:01:24]} {[%emt
00:00:07]} Rxd2 {[%clk 00:01:32]} {[%emt 00:00:03]} 21. b3 {[%clk 00:01:18]}
{[%emt 00:00:09]} Nxb3 {[%clk 00:01:31]} {[%emt 00:00:03]} 22. cxb3 {[%clk
00:01:16]} {[%emt 00:00:04]} Qxf2+ {[%clk 00:01:30]} {[%emt 00:00:03]} 0-1

[Event "MČR v bleskovém šachu družstev 2019"]
[Site "Teplice, Czech Republic"]
[Date "2019.09.14"]
[Round "4.8"]
[White "Duran, Tomas"]
[Black "Hosnedl, Matyas"]
[Result "1-0"]
[TimeControl "3 mim. + 2 s"]
[BlackFideId "390011"]
[WhiteElo "2135"]
[BlackElo "1852"]

1. e4 {[%clk 00:03:02]} {[%emt 00:00:02]} e6 {[%clk 00:03:04]} 2. d4 {[%clk
00:03:02]} {[%emt 00:00:02]} d5 {[%clk 00:03:05]} 3. e5 {[%clk 00:03:03]}
{[%emt 00:00:02]} c5 {[%clk 00:03:06]} {[%emt 00:00:01]} 4. c3 {[%clk
00:03:04]} Nc6 {[%clk 00:03:07]} 5. Nf3 {[%clk 00:03:06]} Bd7 {[%clk 00:03:08]}
6. Bd3 {[%clk 00:03:05]} {[%emt 00:00:06]} cxd4 {[%clk 00:03:04]} {[%emt
00:00:06]} 7. cxd4 {[%clk 00:03:05]} {[%emt 00:00:01]} Qb6 {[%clk 00:03:05]} 8.
O-O {[%clk 00:03:06]} {[%emt 00:00:01]} Nxd4 {[%clk 00:03:03]} {[%emt
00:00:05]} 9. Nxd4 {[%clk 00:03:01]} {[%emt 00:00:07]} Qxd4 {[%clk 00:03:03]}
10. Nc3 {[%clk 00:02:55]} {[%emt 00:00:09]} a6 {[%clk 00:02:57]} {[%emt
00:00:09]} 11. Qf3 {[%clk 00:02:48]} {[%emt 00:00:09]} Ne7 {[%clk 00:02:43]}
{[%emt 00:00:15]} 12. Rd1 {[%clk 00:02:26]} {[%emt 00:00:25]} Qxe5 {[%clk
00:02:43]} {[%emt 00:00:02]} 13. Bf4 {[%clk 00:02:26]} {[%emt 00:00:02]} Qf6
{[%clk 00:02:36]} {[%emt 00:00:09]} 14. Qg3 {[%clk 00:02:04]} {[%emt 00:00:24]}
Nf5 {[%clk 00:02:08]} {[%emt 00:00:30]} 15. Qg4 {[%clk 00:01:48]} {[%emt
00:00:18]} h5 {[%clk 00:01:29]} {[%emt 00:00:41]} 16. Qf3 {[%clk 00:01:27]}
{[%emt 00:00:24]} Bc5 {[%clk 00:01:19]} {[%emt 00:00:11]} 17. Bxf5 {[%clk
00:01:04]} {[%emt 00:00:24]} Qxf5 {[%clk 00:01:18]} {[%emt 00:00:03]} 18. Nxd5
{[%clk 00:01:04]} {[%emt 00:00:02]} exd5 {[%clk 00:01:10]} {[%emt 00:00:11]} 19.
Rxd5 {[%clk 00:01:05]} {[%emt 00:00:02]} Bxf2+ {[%clk 00:00:57]} {[%emt
00:00:14]} 20. Kxf2 {[%clk 00:01:01]} {[%emt 00:00:06]} Qc2+ {[%clk 00:00:58]}
{[%emt 00:00:01]} 21. Rd2 {[%clk 00:00:58]} {[%emt 00:00:05]} Qc5+ {[%clk
00:00:55]} {[%emt 00:00:05]} 22. Be3 {[%clk 00:00:59]} {[%emt 00:00:01]} Qf5
{[%clk 00:00:57]} 23. Re1 {[%clk 00:00:33]} {[%emt 00:00:28]} Qxf3+ {[%clk
00:00:56]} {[%emt 00:00:03]} 24. gxf3 {[%clk 00:00:33]} {[%emt 00:00:02]} Be6
{[%clk 00:00:55]} {[%emt 00:00:02]} 25. Bc5 {[%clk 00:00:33]} {[%emt 00:00:02]}
Rc8 {[%clk 00:00:52]} {[%emt 00:00:05]} 26. b4 {[%clk 00:00:34]} {[%emt
00:00:01]} Rd8 {[%clk 00:00:46]} {[%emt 00:00:08]} 27. Red1 {[%clk 00:00:32]}
{[%emt 00:00:04]} Rxd2+ {[%clk 00:00:46]} {[%emt 00:00:02]} 28. Rxd2 {[%clk
00:00:34]} f6 {[%clk 00:00:46]} {[%emt 00:00:02]} 29. a4 {[%clk 00:00:34]}
{[%emt 00:00:01]} Kf7 {[%clk 00:00:43]} {[%emt 00:00:06]} 30. Rd6 {[%clk
00:00:31]} {[%emt 00:00:05]} Re8 {[%clk 00:00:36]} {[%emt 00:00:09]} 31. h4
{[%clk 00:00:31]} {[%emt 00:00:02]} b5 {[%clk 00:00:26]} {[%emt 00:00:11]} 32.
Rxa6 {[%clk 00:00:30]} {[%emt 00:00:03]} bxa4 {[%clk 00:00:25]} {[%emt
00:00:03]} 33. Rxa4 {[%clk 00:00:31]} {[%emt 00:00:01]} Bc4 {[%clk 00:00:26]}
{[%emt 00:00:01]} 34. Ra7+ {[%clk 00:00:30]} {[%emt 00:00:03]} Kg6 {[%clk
00:00:28]} 35. Kg3 {[%clk 00:00:29]} {[%emt 00:00:03]} Re2 {[%clk 00:00:21]}
{[%emt 00:00:09]} 36. Bf8 {[%clk 00:00:29]} {[%emt 00:00:02]} Kf5 {[%clk
00:00:22]} 37. Bxg7 {[%clk 00:00:30]} {[%emt 00:00:02]} Rb2 {[%clk 00:00:21]}
{[%emt 00:00:03]} 38. Ra5+ {[%clk 00:00:25]} {[%emt 00:00:07]} Kg6 {[%clk
00:00:21]} {[%emt 00:00:02]} 39. Bf8 {[%clk 00:00:25]} {[%emt 00:00:02]} Rb3
{[%clk 00:00:18]} {[%emt 00:00:05]} 40. Ra7 {[%clk 00:00:16]} {[%emt 00:00:12]}
Bd5 {[%clk 00:00:16]} {[%emt 00:00:04]} 41. Kf2 {[%clk 00:00:12]} {[%emt
00:00:05]} Rxf3+ {[%clk 00:00:17]} {[%emt 00:00:01]} 42. Ke2 {[%clk 00:00:14]}
Rh3 {[%clk 00:00:14]} {[%emt 00:00:06]} 43. Rg7+ {[%clk 00:00:14]} {[%emt
00:00:02]} Kf5 {[%clk 00:00:15]} {[%emt 00:00:01]} 44. b5 {[%clk 00:00:14]}
{[%emt 00:00:02]} Bc4+ {[%clk 00:00:15]} {[%emt 00:00:02]} 45. Kf2 {[%clk
00:00:15]} {[%emt 00:00:01]} Bxb5 {[%clk 00:00:16]} 46. Be7 {[%clk 00:00:15]}
{[%emt 00:00:02]} Rxh4 {[%clk 00:00:17]} {[%emt 00:00:02]} 47. Rf7 {[%clk
00:00:16]} Rf4+ {[%clk 00:00:18]} 48. Kg3 {[%clk 00:00:17]} {[%emt 00:00:02]}
Ke6 {[%clk 00:00:17]} {[%emt 00:00:02]} 49. Rh7 {[%clk 00:00:18]} {[%emt
00:00:01]} Rf5 {[%clk 00:00:17]} {[%emt 00:00:02]} 50. Bd8 {[%clk 00:00:19]}
{[%emt 00:00:02]} Be2 {[%clk 00:00:18]} {[%emt 00:00:02]} 51. Re7+ {[%clk
00:00:19]} {[%emt 00:00:02]} Kd5 {[%clk 00:00:17]} {[%emt 00:00:03]} 52. Rxe2
{[%clk 00:00:20]} {[%emt 00:00:02]} Re5 {[%clk 00:00:15]} {[%emt 00:00:03]} 53.
Rd2+ {[%clk 00:00:21]} {[%emt 00:00:01]} Ke6 {[%clk 00:00:16]} {[%emt
00:00:01]} 54. Rf2 {[%clk 00:00:21]} {[%emt 00:00:01]} f5 {[%clk 00:00:17]}
{[%emt 00:00:01]} 55. Bg5 {[%clk 00:00:21]} {[%emt 00:00:02]} Ra5 {[%clk
00:00:17]} {[%emt 00:00:02]} 56. Kh4 {[%clk 00:00:23]} Ra3 {[%clk 00:00:16]}
{[%emt 00:00:03]} 57. Kxh5 {[%clk 00:00:23]} {[%emt 00:00:02]} Rh3+ {[%clk
00:00:16]} {[%emt 00:00:02]} 58. Kg6 {[%clk 00:00:25]} Rg3 {[%clk 00:00:17]}
{[%emt 00:00:02]} 59. Rxf5 {[%clk 00:00:25]} {[%emt 00:00:02]} Rg1 {[%clk
00:00:18]} {[%emt 00:00:01]} 60. Rf2 {[%clk 00:00:25]} {[%emt 00:00:02]} Rg3
{[%clk 00:00:19]} {[%emt 00:00:01]} 61. Re2+ {[%clk 00:00:26]} Kd5 {[%clk
00:00:20]} {[%emt 00:00:01]} 62. Kf5 {[%clk 00:00:28]} Rf3 {[%emt 00:00:01]} 63.
Bf4 Rf1 {[%clk 00:00:22]} 64. Rd2+ {[%clk 00:00:30]} {[%emt 00:00:01]} Kc6
{[%clk 00:00:23]} {[%emt 00:00:01]} 65. Ke4 {[%clk 00:00:31]} {[%emt 00:00:01]}
Re1+ {[%clk 00:00:21]} {[%emt 00:00:04]} 66. Be3 {[%clk 00:00:31]} {[%emt
00:00:02]} Ra1 {[%clk 00:00:20]} {[%emt 00:00:02]} 67. Rc2+ {[%clk 00:00:33]}
{[%emt 00:00:01]} Kd6 {[%clk 00:00:21]} {[%emt 00:00:01]} 68. Rb2 {[%clk
00:00:33]} {[%emt 00:00:02]} Ra4+ {[%clk 00:00:22]} {[%emt 00:00:01]} 69. Bd4
{[%clk 00:00:34]} {[%emt 00:00:01]} Ke6 {[%clk 00:00:21]} {[%emt 00:00:02]} 70.
Rb6+ {[%clk 00:00:35]} {[%emt 00:00:01]} Kd7 {[%clk 00:00:22]} {[%emt
00:00:01]} 71. Kd5 {[%clk 00:00:37]} Kc7 {[%clk 00:00:22]} {[%emt 00:00:02]} 72.
Rb2 {[%emt 00:00:06]} Kd7 {[%clk 00:00:21]} 73. Bc5 {[%clk 00:00:36]} Rh4
{[%clk 00:00:20]} {[%emt 00:00:02]} 74. Rb7+ {[%clk 00:00:37]} {[%emt
00:00:01]} Kc8 {[%clk 00:00:20]} {[%emt 00:00:01]} 75. Rg7 {[%clk 00:00:37]}
{[%emt 00:00:03]} Rh5+ {[%clk 00:00:19]} {[%emt 00:00:04]} 76. Kc6 {[%clk
00:00:38]} {[%emt 00:00:01]} Rh8 {[%emt 00:00:05]} 77. Bd6 {[%clk 00:00:36]}
{[%emt 00:00:02]} Kd8 {[%clk 00:00:15]} {[%emt 00:00:05]} 78. Ra7 {[%clk
00:00:36]} {[%emt 00:00:02]} 1-0

[Event "MČR v bleskovém šachu družstev 2019"]
[Site "Teplice, Czech Republic"]
[Date "2019.09.14"]
[Round "4.9"]
[White "Formanek, Martin"]
[Black "Vykouk, Jan"]
[Result "1/2-1/2"]
[TimeControl "3 mim. + 2 s"]
[BlackTitle "IM"]
[WhiteFideId "316768"]
[WhiteElo "2230"]
[BlackElo "2439"]

1. e4 {[%clk 00:03:02]} {[%emt 00:00:01]} c5 {[%clk 00:03:03]} {[%emt
00:00:02]} 2. Nf3 {[%clk 00:03:01]} {[%emt 00:00:03]} Nc6 {[%clk 00:03:04]}
{[%emt 00:00:01]} 3. Bb5 {[%clk 00:03:01]} {[%emt 00:00:02]} g6 {[%clk
00:03:04]} {[%emt 00:00:01]} 4. O-O {[%clk 00:03:00]} {[%emt 00:00:03]} Bg7
{[%clk 00:03:05]} {[%emt 00:00:01]} 5. Re1 {[%clk 00:02:59]} {[%emt 00:00:04]}
Nf6 {[%clk 00:03:01]} {[%emt 00:00:06]} 6. Bxc6 {[%clk 00:02:46]} {[%emt
00:00:16]} dxc6 {[%clk 00:03:01]} {[%emt 00:00:01]} 7. h3 {[%clk 00:02:44]}
{[%emt 00:00:03]} O-O {[%clk 00:03:01]} {[%emt 00:00:02]} 8. d3 {[%clk
00:02:43]} {[%emt 00:00:03]} Ne8 {[%clk 00:02:58]} {[%emt 00:00:05]} 9. a4
{[%clk 00:02:32]} {[%emt 00:00:14]} e5 {[%clk 00:02:53]} {[%emt 00:00:06]} 10.
a5 {[%clk 00:02:24]} {[%emt 00:00:11]} Nc7 {[%clk 00:02:52]} {[%emt 00:00:04]}
11. Be3 {[%clk 00:02:18]} {[%emt 00:00:07]} Ne6 {[%clk 00:02:52]} {[%emt
00:00:02]} 12. Nbd2 {[%clk 00:02:09]} {[%emt 00:00:11]} Qe7 {[%clk 00:02:40]}
{[%emt 00:00:14]} 13. Nc4 {[%clk 00:01:59]} {[%emt 00:00:12]} Nd4 {[%clk
00:02:10]} {[%emt 00:00:32]} 14. c3 {[%clk 00:01:42]} {[%emt 00:00:19]} Nxf3+
{[%clk 00:02:09]} {[%emt 00:00:03]} 15. Qxf3 {[%clk 00:01:42]} {[%emt
00:00:02]} Be6 {[%clk 00:02:09]} {[%emt 00:00:02]} 16. Rad1 {[%clk 00:01:29]}
{[%emt 00:00:15]} Rad8 {[%clk 00:02:04]} {[%emt 00:00:07]} 17. Qg3 {[%clk
00:01:24]} {[%emt 00:00:07]} Bxc4 {[%clk 00:01:35]} {[%emt 00:00:31]} 18. dxc4
{[%clk 00:01:25]} {[%emt 00:00:01]} b6 {[%clk 00:01:33]} {[%emt 00:00:04]} 19.
axb6 {[%clk 00:01:12]} {[%emt 00:00:15]} axb6 {[%clk 00:01:34]} {[%emt
00:00:01]} 20. Qf3 {[%clk 00:00:56]} {[%emt 00:00:18]} Qe6 {[%clk 00:01:35]}
{[%emt 00:00:01]} 21. Qe2 {[%clk 00:00:56]} {[%emt 00:00:01]} f5 {[%clk
00:01:31]} {[%emt 00:00:06]} 22. f3 {[%clk 00:00:56]} {[%emt 00:00:02]} f4
{[%clk 00:01:27]} {[%emt 00:00:07]} 23. Bf2 {[%clk 00:00:57]} g5 {[%clk
00:01:21]} {[%emt 00:00:08]} 24. b4 {[%clk 00:00:54]} {[%emt 00:00:05]} cxb4
{[%clk 00:01:05]} {[%emt 00:00:17]} 25. cxb4 {[%clk 00:00:55]} {[%emt
00:00:02]} Rb8 {[%clk 00:01:00]} {[%emt 00:00:07]} 26. c5 {[%clk 00:00:50]}
{[%emt 00:00:06]} bxc5 {[%clk 00:00:57]} {[%emt 00:00:05]} 27. bxc5 {[%clk
00:00:48]} {[%emt 00:00:05]} Rfd8 {[%clk 00:00:58]} 28. Rxd8+ {[%clk 00:00:48]}
{[%emt 00:00:02]} Rxd8 {[%clk 00:00:59]} 29. Rd1 {[%clk 00:00:48]} {[%emt
00:00:01]} Rd7 {[%clk 00:00:52]} {[%emt 00:00:09]} 30. Rxd7 {[%clk 00:00:48]}
{[%emt 00:00:02]} Qxd7 {[%clk 00:00:53]} {[%emt 00:00:01]} 31. Qc4+ {[%clk
00:00:47]} {[%emt 00:00:03]} Kh8 {[%clk 00:00:44]} {[%emt 00:00:11]} 32. Qb3
{[%clk 00:00:46]} {[%emt 00:00:03]} h6 {[%clk 00:00:39]} {[%emt 00:00:07]} 33.
Kh2 {[%clk 00:00:46]} {[%emt 00:00:01]} Kh7 {[%clk 00:00:39]} {[%emt 00:00:02]}
34. Bg1 {[%clk 00:00:43]} {[%emt 00:00:05]} Kg6 {[%clk 00:00:37]} {[%emt
00:00:04]} 35. Qg8 {[%clk 00:00:42]} {[%emt 00:00:02]} h5 {[%clk 00:00:37]}
{[%emt 00:00:03]} 36. Bf2 {[%clk 00:00:40]} {[%emt 00:00:04]} Qf7 {[%clk
00:00:25]} {[%emt 00:00:14]} 37. Qc8 {[%clk 00:00:38]} {[%emt 00:00:04]} Qf6
{[%clk 00:00:25]} {[%emt 00:00:03]} 38. Qd7 {[%clk 00:00:37]} {[%emt 00:00:03]}
Bf8 {[%clk 00:00:19]} {[%emt 00:00:08]} 39. Kg1 {[%clk 00:00:35]} {[%emt
00:00:04]} Be7 {[%clk 00:00:19]} {[%emt 00:00:02]} 40. Kh2 {[%clk 00:00:36]}
{[%emt 00:00:01]} Kf7 {[%clk 00:00:19]} {[%emt 00:00:02]} 41. Kg1 {[%clk
00:00:37]} {[%emt 00:00:01]} Qe6 {[%clk 00:00:20]} {[%emt 00:00:01]} 42. Qxe6+
{[%clk 00:00:31]} {[%emt 00:00:07]} Kxe6 {[%clk 00:00:21]} {[%emt 00:00:02]} 43.
Kf1 {[%clk 00:00:32]} Kf6 {[%clk 00:00:11]} {[%emt 00:00:12]} 44. Ke2 {[%clk
00:00:33]} {[%emt 00:00:01]} Kg6 {[%clk 00:00:11]} {[%emt 00:00:02]} 45. Bg1
{[%clk 00:00:34]} {[%emt 00:00:01]} g4 {[%clk 00:00:12]} {[%emt 00:00:01]} 46.
hxg4 {[%emt 00:00:01]} hxg4 47. fxg4 {[%clk 00:00:31]} {[%emt 00:00:02]} Kg5
{[%clk 00:00:08]} {[%emt 00:00:06]} 48. Kf3 {[%clk 00:00:32]} {[%emt 00:00:01]}
Kg6 {[%clk 00:00:09]} {[%emt 00:00:01]} 49. g3 {[%clk 00:00:33]} {[%emt
00:00:01]} fxg3 50. Kxg3 {[%clk 00:00:35]} Bf6 {[%clk 00:00:10]} {[%emt
00:00:02]} 51. Be3 {[%clk 00:00:36]} Bg7 {[%clk 00:00:10]} {[%emt 00:00:02]} 52.
Kf3 {[%clk 00:00:36]} {[%emt 00:00:01]} Bf6 {[%clk 00:00:11]} {[%emt 00:00:01]}
53. Ke2 {[%clk 00:00:38]} Bg7 {[%clk 00:00:10]} {[%emt 00:00:02]} 54. Kd3
{[%clk 00:00:37]} {[%emt 00:00:03]} Bf6 {[%clk 00:00:11]} 55. Kc4 {[%clk
00:00:38]} {[%emt 00:00:01]} Bd8 {[%clk 00:00:11]} {[%emt 00:00:02]} 56. Bd2
{[%clk 00:00:38]} {[%emt 00:00:02]} Bc7 {[%clk 00:00:12]} {[%emt 00:00:02]} 57.
Kb4 {[%clk 00:00:39]} {[%emt 00:00:01]} Bd8 {[%clk 00:00:13]} 58. Ka4 {[%clk
00:00:40]} Bc7 {[%clk 00:00:11]} {[%emt 00:00:04]} 59. Ba5 Bb8 60. Bd8 {[%emt
00:00:03]} Ba7 61. Be7 {[%clk 00:00:40]} {[%emt 00:00:02]} Kf7 {[%clk
00:00:15]} {[%emt 00:00:01]} 62. Bd6 {[%clk 00:00:41]} Kf6 {[%clk 00:00:11]}
{[%emt 00:00:07]} 63. Ka5 {[%clk 00:00:42]} Kg5 {[%clk 00:00:09]} {[%emt
00:00:03]} 64. Ka6 {[%clk 00:00:44]} Bxc5 {[%clk 00:00:10]} {[%emt 00:00:01]}
65. Bxc5 {[%clk 00:00:44]} {[%emt 00:00:02]} Kxg4 {[%clk 00:00:11]} {[%emt
00:00:01]} 66. Kb6 {[%clk 00:00:44]} {[%emt 00:00:02]} Kf3 {[%emt 00:00:07]}
1/2-1/2